Workbook

Sheet PLANS
A1: Syndicat- des Copropriétaires
A2: Rue
A3: C.P. Ville
E4: Jour | F4: mois | G4: Année N | H4: Jour | I4: mois | J4: Année N+1 | K4: Jour | L4: mois | M4: Année N+2
D5: Date début exercice | E5: 1er | F5: janvier | G5: 2020 | H5: 1er | I5: janvier | J5: 2021 | K5: 1er | L5: janvier | M5: 2022
D6: Date fin exercice | E6: 31 | F6: decembre | G6: 2020 | H6: 31 | I6: décembre | J6: 2021 | K6: 31 | L6: décembre | M6: 2022
D8: =IF($G$5<>$G$6,CONCATENATE($G$5-1,"/",$G$6-1),$G$6-1) -> 2019 | F8: Exercice : | G8: =IF($G$5<>$G$6,CONCATENATE($G$5,"/",$G$6),$G$6) -> 2020 | J8: =IF(J5<>J6,CONCATENATE(J5,"/",J6),J6) -> 2021 | M8: =IF(M5<>M6,CONCATENATE(M5,"/",M6),M6) -> 2022
G10: Fin Exercice | H10: =CONCATENATE(E6," ",F6," ",G6) -> 31 decembre 2020
G12: Exercice N | H12: =CONCATENATE($E$5," ",$F$5," ",$G$5," au ",$E$6," ",$F$6," ",$G$6) -> 1er janvier 2020 au 31 decembre 2020
G13: Exercice N + 2 | H13: =CONCATENATE($K$5," ",$L$5," ",$M$5," au ",$K$6," ",$L$6," ",$M$6) -> 1er janvier 2022 au 31 décembre 2022
F15: Dernier N°CLES CH.Générales | G15: 9 | H15: =CONCATENATE("<=",G15) -> <=9
F16: Premier N°CLES CH.Travaux | G16: 11 | H16: =CONCATENATE(">=",G16) -> >=11

Sheet Annexe1
A1: =PLANS!A1 -> Syndicat- des Copropriétaires | H1: Annexe 1
A2: =PLANS!A2 -> Rue
A3: =PLANS!A3 -> C.P. Ville | E3: ETAT FINANCIER apres répartition au | F3: =CONCATENATE(PLANS!E6," ",PLANS!F6," "," ",PLANS!G6) -> 31 decembre 2020
A5: I - SITUATION FINANCIERE ET TRESORERIE
C6: Exercice Précédent approuvé | D6: Exercice Clos | G6: Exercice Précédent approuvé | H6: Exercice Clos
B7: Trésorerie | E7: Provisions et Avances
E8: 102 | F8: Provisions pour travaux
A9: 50 | B9: Fonds Placés | E9: 103 | F9: Avances
E10: 1031 | F10: Avances de trésorerie | G10: 2000 | H10: 2000
A11: 51 | B11: Banque | C11: 4000 | D11: 5500 | E11: 1032 | F11: Avances travaux
E12: 1033 | F12: Autres avances
E13: 131 | F13: Subvention attente affectation
E16: 12 | F16: Solde en attente sur travaux ou opérations exceptionnelles | H16: 500
B17: Trésorerie disponible Total 1 | C17: =SUM(C7:C16) -> 4000 | D17: =SUM(D7:D16) -> 5500 | F17: Total 1 | G17: =SUM(G7:G16) -> 2000 | H17: =SUM(H7:H16) -> 2500
A18: II - CREANCES | E18: DETTES
C19: Exercice Précédent approuvé | D19: Exercice Clos | G19: Exercice Précédent approuvé | H19: Exercice Clos
A20: 45 | B20: Copropriétaires-Sommes Exigiblesrestant à recevoir | C20: 1000 | D20: 1500 | E20: 45 | F20: Copropriétaires | G20: 1500 | H20: 1000
F21: Compte de Tiers
A22: 459 | B22: Copropriétaires-Créances douteuses | E22: 40 | F22: Fournisseurs | G22: 1500 | H22: 2500
B23: Comptes de tiers | E23: 42à44 | F23: Autres dettes
A24: 40 | B24: Fournisseurs | E24: 46 | F24: Créditeurs divers | H24: 400
A25: 42-44 | B25: Autres créances | E25: 47 | F25: Compte d'attente | H25: 600
A26: 46 | B26: Débiteurs divers
A27: 47 | B27: Compte d'attente | E27: 49 | F27: Dépréciation ctes de tiers
A28: 48 | B28: Cte de régularisation | E28: 48 | F28: Compte de régularisation
B29: Total 2 | C29: =SUM(C20:C28) -> 1000 | D29: =SUM(D20:D28) -> 1500 | F29: Total 2 | G29: =SUM(G20:G28) -> 3000 | H29: =SUM(H20:H28) -> 4500
B30: Total général (1)+(2) | C30: =C17+C29 -> 5000 | D30: =D17+D29 -> 7000 | F30: Total général (1)+(2) | G30: =G17+G29 -> 5000 | H30: =H17+H29 -> 7000
C31: =IF($C$30<>$G$30,"ERREUR","") ->  | D31: =IF($D$30<>$H$30,"ERREUR","") ->  | G31: =IF($C$30<>$G$30,"ERREUR","") ->  | H31: =IF($D$30<>$H$30,"ERREUR","") -> 
F32: Emprunts:Montant restant dû | G32: 0 | H32: 0
A33: Le syndic:

Sheet Annexe2
A1: =PLANS!$A$1 -> Syndicat- des Copropriétaires | F1: Annexe N°2 A | G1: =PLANS!$A$1 -> Syndicat- des Copropriétaires | L1: Annexe N°2 B
A2: =PLANS!$A$2 -> Rue | G2: =PLANS!$A$2 -> Rue
A3: =PLANS!$A$3 -> C.P. Ville | G3: =PLANS!$A$3 -> C.P. Ville
D4: Compte de gestion générale de l'exercice clos réalisé (N) du | E4: =PLANS!$H$12 -> 1er janvier 2020 au 31 decembre 2020 | I4: Compte de gestion générale de l'exercice clos réalisé (N) du | J4: =PLANS!$H$12 -> 1er janvier 2020 au 31 decembre 2020
D5: budget prévisionnel de l'exercice (N+2) du | E5: =PLANS!$H$13 -> 1er janvier 2022 au 31 décembre 2022 | I5: budget prévisionnel de l'exercice (N+2) du | J5: =PLANS!$H$13 -> 1er janvier 2022 au 31 décembre 2022
A7: CHARGES POUR OPERATIONS COURANTES | G7: PRODUITS POUR OPERATIONS COURANTES
B8: Pour approbation des comptes | E8: Pour le vote du budget prévisionnel | H8: Pour approbation des comptes
B9: Exercice Précédent | C9: Exercice clos | D9: Exercice clos réalisé | E9: Budget prévisionnel | F9: Budget Prévisionnel | H9: Exercice Précédent | I9: Exercice clos | J9: Exercice clos réalisé | K9: Budget prévisionnel | L9: Budget Prévisionnel
B10: approuvé | C10: budget voté | D10: à approuver | E10: en cours voté | F10: à voter | H10: approuvé | I10: budget voté | J10: à approuver | K10: en cours voté | L10: à voter
B11: N-1 | C11: N | D11: N | E11: N+1 | F11: N+2 | H11: N-1 | I11: N | J11: N | K11: N+1 | L11: N+2
B12: =PLANS!D8 -> 2019 | C12: =PLANS!G8 -> 2020 | D12: =PLANS!G8 -> 2020 | E12: =PLANS!J8 -> 2021 | F12: =PLANS!M8 -> 2022 | H12: =PLANS!$D$8 -> 2019 | I12: =PLANS!$G$8 -> 2020 | J12: =PLANS!$G$8 -> 2020 | K12: =PLANS!$J$8 -> 2021 | L12: =PLANS!$M$8 -> 2022
A13: 60-Achats matières et fournit. | G13: 701,1 Provisions copropriétaires | H13: 10513 | I13: 12104 | J13: 12114 | K13: 12145 | L13: 12696
A14: 601 Eau | B14: 1200 | C14: 1250 | D14: 1200 | E14: 1300 | F14: 1350 | G14: 711 Subventions s/Frais fonct. | H14: 500 | I14: 500 | J14: 500
A15: 602 Electricité | B15: 2213 | C15: 2154 | D15: 1914 | E15: 2015 | F15: 2056 | G15: 713 Indemnités d'assurances | H15: 200
A16: 603 Combustible | B16: 2300 | C16: 2400 | D16: 2200 | E16: 2050 | F16: 2100 | G16: 714 produites divers | H16: 100 | I16: 100 | J16: 150 | K16: 200 | L16: 200
A17: 604 Autres Prod.entr.Pet.Equip. | B17: 450 | C17: 300 | D17: 200 | E17: 200 | F17: 250 | G17: 716 Produits financiers | H17: 300 | I17: 200 | J17: 250 | K17: 300 | L17: 300
A18: 605 Matériel
A19: 606 Fournitures
A20: 61-Services extérieurs
A21: 611 Nettoyage des locaux | B21: 1250 | C21: 1300 | D21: 1400 | E21: 1450 | F21: 1500
A22: 614,1 Maintenance Chaudière | B22: 600 | C22: 620 | D22: 650 | E22: 700 | F22: 750
A23: 614,2 Maintenance extincteur | B23: 320 | C23: 340 | D23: 360 | E23: 380 | F23: 400
A24: 614,4 Contrat Répartiteurs | B24: 1300 | C24: 1200 | D24: 1200 | E24: 1250 | F24: 1300
A25: 615 Entretien et Petites Réparat. | B25: 380 | C25: 450 | D25: 250 | E25: 200 | F25: 230
A26: 616 Assurances | B26: 300 | C26: 360 | D26: 400 | E26: 410 | F26: 420
A27: 621 Honoraires syndic | B27: 1900 | C27: 2000 | D27: 2100 | E27: 2200 | F27: 2300
A28: 621,2 Débours | B28: 50 | C28: 80 | D28: 60 | E28: 70 | F28: 80
A29: 621,3 Frais postaux | B29: 130 | C29: 140 | D29: 100 | E29: 110 | F29: 120
A30: 621,4 Fournitures | B30: 270 | C30: 250 | D30: 200 | E30: 220 | F30: 240
A31: 62-Frais d'administration
A32: 623 Rémunérations de tiers
A33: 66-Charges financières
A34: 662 Charges financières | B34: 50 | C34: 60 | D34: 80 | E34: 90 | F34: 100
A43: Sous-total | B43: =SUM(B13:B42) -> 12713 | C43: =SUM(C13:C42) -> 12904 | D43: =SUM(D13:D42) -> 12314 | E43: =SUM(E13:E42) -> 12645 | F43: =SUM(F13:F42) -> 13196 | G43: Sous-total | H43: =SUM(H13:H42) -> 11613 | I43: =SUM(I13:I42) -> 12904 | J43: =SUM(J13:J42) -> 13014 | K43: =SUM(K13:K42) -> 12645 | L43: =SUM(L13:L42) -> 13196
A44: Solde(Excédent s/opérations courantes affectés aux copropriétaires) | D44: 700 | G44: Solde(Insuffisances s/opérations ctes affectés aux copropriétaires) | H44: 1100
B45: =SUM(B43+B44) -> 12713 | C45: =SUM(C43+C44) -> 12904 | D45: =SUM(D43+D44) -> 13014 | E45: =E43 -> 12645 | F45: =F43 -> 13196 | G45: Total I | H45: =H43+H44 -> 12713 | I45: =I43 -> 12904 | J45: =J43+J44 -> 13014 | K45: =K43 -> 12645 | L45: =L43 -> 13196
B46: =IF($B$45=$H$45,"","ERREUR") ->  | C46: =IF($C$45=$I$45,"","ERREUR") ->  | D46: =IF($D$45=$J$45,"","ERREUR") ->  | E46: =IF($E$45=$K$45,"","ERREUR") ->  | F46: =IF($F$45=$L$45,"","ERREUR") ->  | H46: =IF($B$45=$H$45,"","ERREUR") ->  | I46: =IF($C$45=$I$45,"","ERREUR") ->  | J46: =IF($D$45=$J$45,"","ERREUR") ->  | K46: =IF($E$45=$K$45,"","ERREUR") ->  | L46: =IF($F$45=$L$45,"","ERREUR") -> 
A47: CHARGES POUR TRAVAUX ET AUTRES OPERATIONS EXCEPTIONNELLES | G47: PRODUITS POUR TRAVAUX ET AUTRES OPERATIONS EXCEPTIONNELLES
G48: 702,1 Provisions pour travaux | H48: 3000 | I48: 3200 | J48: 3400
A49: 671 Travaux | B49: 4500 | C49: 4500 | D49: 4800 | G49: 703 Avances versées par copro. | H49: 1100 | I49: 1000 | J49: 1000
G50: 704 Remb.d'.annuités emprunts
G51: Autres produits
G52: 711 Subventions sur travaux
G53: 712 Emprunts à util. s/Travaux
G54: 712 Indemnités d'assurances | H54: 400 | I54: 300 | J54: 100
G55: 714 Produits divers
A56: 678 Charges exceptionnelles | G56: 716 Produits financiers
A57: 68 Dotations dépréc.créances | G57: 718 produits exceptionnels
A58: 68 Dot.dépréc.créances | G58: 78 Reprise. s/créances dout
A59: Solde (Excédent) | G59: Solde (Insuffisance) | J59: 300
B60: =SUM(B48:B59) -> 4500 | C60: =SUM(C48:C59) -> 4500 | D60: =SUM(D48:D59) -> 4800 | G60: Total II | H60: =SUM(H48:H59) -> 4500 | I60: =SUM(I48:I59) -> 4500 | J60: =SUM(J48:J59) -> 4800
B61: =IF($B$60=$H$60,"","ERREUR") ->  | C61: =IF($C$60=$I$60,"","ERREUR") ->  | D61: =IF(D60<>J60,"ERREUR","") ->  | H61: =IF($B$60=$H$60,"","ERREUR") ->  | I61: =IF($C$60=$I$60,"","ERREUR") ->  | J61: =IF($D$60=$J$60,"","ERREUR") -> 
K62: =IF(K44<>"","ERREUR","") ->  | L62: =IF(L44<>"","ERREUR","") -> 
A63: Le syndic:

Sheet Annexe3
A1: =PLANS!A1 -> Syndicat- des Copropriétaires | F1: Annexe N° 3
A2: =PLANS!A2 -> Rue
A3: =PLANS!A3 -> C.P. Ville
D4: Compte de gestion générale de l'exercice clos réalisé (N) du | E4: =PLANS!H12 -> 1er janvier 2020 au 31 decembre 2020
D5: budget prévisionnel de l'exercice (N+2) du | E5: =PLANS!H13 -> 1er janvier 2022 au 31 décembre 2022
A7: CHARGES POUR OPERATIONS COURANTES
B8: Pour approbation des comptes | E8: Pour le vote du budget prévisionnel
B9: Exercice Précédent | C9: Exercice clos | D9: Exercice clos réalisé | E9: Budget prévisionnel | F9: Budget Prévisionnel
B10: approuvé | C10: budget voté | D10: à approuver | E10: en cours voté | F10: à voter
B11: N-1 | C11: N | D11: N | E11: N+1 | F11: N+2
B12: =PLANS!$D$8 -> 2019 | C12: =PLANS!$G$8 -> 2020 | D12: =PLANS!$G$8 -> 2020 | E12: =PLANS!$J$8 -> 2021 | F12: =PLANS!$M$8 -> 2022
A13: Charges communes gén.
A14: Electricité | B14: 1913 | C14: 1804 | D14: 1614 | E14: 1665 | F14: 1706
A15: Produits entretien Pet.Equip. | B15: 450 | C15: 300 | D15: 200 | E15: 200 | F15: 250
A16: Nettoyage des locaux | B16: 1250 | C16: 1300 | D16: 1400 | E16: 1450 | F16: 1500
A17: Entret.Réparat.div. | B17: 380 | C17: 450 | D17: 250 | E17: 200 | F17: 230
A19: Maintenance extincteur | B19: 320 | C19: 340 | D19: 360 | E19: 380 | F19: 400
A20: Assurance | B20: 300 | C20: 360 | D20: 400 | E20: 410 | F20: 420
A21: Honoraires syndic | B21: 1900 | C21: 2000 | D21: 2100 | E21: 2200 | F21: 2300
A22: Débours | B22: 50 | C22: 80 | D22: 60 | E22: 70 | F22: 80
A23: Frais Postaux | B23: 130 | C23: 140 | D23: 100 | E23: 110 | F23: 120
A24: Fournitures | B24: 270 | C24: 250 | D24: 200 | E24: 220 | F24: 240
A25: Autres charges financières | B25: 50 | C25: 60 | D25: 80 | E25: 90 | F25: 100
A27: Subventions | B27: -500 | C27: -500 | D27: -500
A28: Produits divers | B28: -100 | C28: -100 | D28: -150 | E28: -200 | F28: -200
A29: Produits financiers | B29: -300 | C29: -200 | D29: -250 | E29: -300 | F29: -300
B30: =SUM(B13:B29) -> 6113 | C30: 6284 | D30: 5864 | E30: 6495 | F30: 6846
A31: Charges Répartiteurs
A32: Contrat répartiteurs | B32: 1300 | C32: 1200 | D32: 1200 | E32: 1250 | F32: 1300
B35: =SUM(B31:B34) -> 1300 | C35: =SUM(C31:C34) -> 1200 | D35: 1200 | E35: 1250 | F35: 1300
A36: Eau Cons.Individuelles
A37: Eau Cons.Individuelles | B37: 1200 | C37: 1250 | D37: 1200 | E37: 1300 | F37: 1300
B39: =SUM(B36:B38) -> 1200 | C39: =SUM(C36:C38) -> 1250 | D39: 1200 | E39: 1300 | F39: 1300
A40: Charges Chauffage
A41: Combustible | B41: 2300 | C41: 2400 | D41: 2200 | E41: 2050 | F41: 2100
A42: electricité | B42: 300 | C42: 350 | D42: 300 | E42: 350 | F42: 400
A43: Maintenance Chaudière | B43: 600 | C43: 620 | D43: 650 | E43: 700 | F43: 750
A44: Indemité Assurance | B44: -200
B45: =SUM(B40:B44) -> 3000 | C45: =SUM(C40:C44) -> 3370 | D45: 3150 | E45: 3100 | F45: 3250
B51: =SUM(B46:B50) -> 0 | C51: =SUM(C46:C50) -> 0 | D51: 0 | E51: 0 | F51: 0
B55: =SUM(B52:B54) -> 0 | C55: 0 | D55: 0 | E55: 0 | F55: 0
B59: =SUM(B56:B58) -> 0 | C59: =SUM(C56:C58) -> 0 | D59: 0 | E59: 0 | F59: 0
A60: TOTAL CHARGES NETTES | B60: =SUM(B30,B35,B39,B45,B51,B55,B59) -> 11613 | C60: =SUM(C30,C35,C39,C45,C51,C55,C59) -> 12104 | D60: 11414 | E60: 12145 | F60: 12696
A61: Provisions copropriétaires | B61: =Annexe2!H13 -> 10513 | C61: =Annexe2!I13 -> 12104 | D61: 12100
A62: Solde(Exécédent ou insuffisance s/opérations courantes affecté aux copropriétaires | B62: =B61-B60 -> -1100 | D62: =D61-D60 -> 686
B63: =IF(B60=Annexe2!B43-Annexe2!H43+Annexe2!H13,"","ERREUR") ->  | C63: =IF(C60=Annexe2!C43-Annexe2!I43+Annexe2!I13,"","ERREUR") ->  | D63: =IF(D60=Annexe2!D43-Annexe2!J43+Annexe2!J13,"","ERREUR") ->  | E63: =IF(E60=Annexe2!E43-Annexe2!K43+Annexe2!K13,"","ERREUR") ->  | F63: =IF(F60=Annexe2!F43-Annexe2!L43+Annexe2!L13,"","ERREUR") -> 
A65: Le syndic:

Sheet Annexe4
A1: =PLANS!A1 -> Syndicat- des Copropriétaires | F1: Annexe N° 4
A2: =PLANS!A2 -> Rue
A3: =PLANS!A3 -> C.P. Ville
C4: Compte de gestion pour travaux de l'article 14-2 et opérations exceptionnelles
D5: Exceptionnelles de l'exercice clos réalisés du | E5: =PLANS!H12 -> 1er janvier 2020 au 31 decembre 2020
C7: Exercice clos,dépenses votés (N) | D7: Exercice clos réalisé à approuver (N)
D8: DEPENSES | E8: PROVISIONS APPELEES | F8: SOLDE
A9: TRAVAUX DE L'ARTCLE 14-2
A10: TRAVAUX | C10: 2000 | D10: 2300
A11: Provisions | E11: 1200
A12: Produite affectés | C12: -1000 | D12: -800
B14: TOTAL | C14: =SUM(C10:C13) -> 1000 | D14: =SUM(D10:D13) -> 1500 | E14: 1200 | F14: =E14-D14 -> -300
A15: TRAVAUX
A16: TRAVAUX | C16: 800 | D16: 800
A17: Provisions | E17: 500
A18: Produite affectés | C18: -500 | D18: -300
B19: TOTAL | C19: =SUM(C15:C18) -> 300 | D19: =SUM(D15:D18) -> 500 | E19: 500 | F19: =E19-D19 -> 0
A20: TRAVAUX
A21: TRAVAUX | C21: 1100 | D21: 1100
A22: Provisions | E22: 1100
A23: Produite affectés
B24: TOTAL | C24: =SUM(C20:C23) -> 1100 | D24: =SUM(D20:D23) -> 1100 | E24: 1100 | F24: =E24-D24 -> 0
A25: TRAVAUX
A26: TRAVAUX | C26: 600 | D26: 600
A27: Provisions | E27: 600
A28: Produite affectés
B29: TOTAL | C29: =SUM(C25:C28) -> 600 | D29: =SUM(D25:D28) -> 600 | E29: 600 | F29: =E29-D29 -> 0
B30: TOTAL TRAVAUX ARTICLE-2 | C30: =SUM(C14,C19,C24,C29) -> 3000 | D30: =SUM(D14,D19,D24,D29) -> 3700 | E30: 3400 | F30: =E30-D30 -> -300
A31: OPERATIONS EXCEPTIONNELLES
A43: TOTAL OPERATIONS EXCEPTIONNELLES | C43: =SUM(C32:C42) -> 0 | D43: =SUM(D32:D42) -> 0 | E43: =SUM(E32:E42) -> 0 | F43: =E43-D43 -> 0
A44: TOTAL TRAVAUX DE L'ARTICLE 14-2 et OPERATIONS EXCEPTIONNELLES | C44: =C30+C43 -> 3000 | D44: =D30+D43 -> 3700 | E44: 3400 | F44: =E44-D44 -> -300
C45: =IF(C44=Annexe2!H48,"","ERREUR") ->  | D45: =IF(D44=Annexe2!D60-SUM(Annexe2!J49:J58),"","ERREUR") ->  | E45: =IF(E44=Annexe2!J48,"","ERREUR") ->  | F45: =IF(F44<>Annexe2!D59-Annexe2!J59,"ERREUR","") -> 
E46: Le syndic:

Sheet Annexe5
A1: =PLANS!A1 -> Syndicat- des Copropriétaires | H1: Annexe N° 5
A2: =PLANS!A2 -> Rue
A3: =PLANS!A3 -> C.P. Ville
B4: ETAT DES TRAVAUX DE L'ARTICLE 14-2 ET OPERATIONS EXCEPTIONNNELLES VOTES NON ENCORE CLOTURES
D5: A LA FIN DE L'EXERCICE DU | E5: =PLANS!H12 -> 1er janvier 2020 au 31 decembre 2020
E8: APPELS TRAVAUX | F8: SOLDE EN ATTENTE | H8: SUBVENTIONS ET
B9: TRAVAUX VOTES | C9: TRAVAUX PAYES | D9: TRAVAUX REALISES | E9: EMPRUNTS ET | F9: SUR TRAVAUX | H9: EMPRUNTS A
B10: (Montant et date) | C10: (Montant et date) | D10: (Montant et date) | E10: SUBVENTIONS RECUS | H10: RECEVOIR
E11: (Montant et date) | F11: (Montant et date) | H11: (Montant et date)
B12: A | C12: B | D12: C | E12: D | F12: E=D-C | H12: F
A13: TRAVAUX | E13: 500
A33: TOTAL | B33: =SUM(B13:B32) -> 0 | C33: =SUM(C13:C32) -> 0 | D33: 0 | E33: 500 | F33: =E33-D33 -> 500 | H33: 0
F34: =IF(Annexe1!H16=Annexe5!F33,"","ERREUR") -> 
E36: Le syndic:

Sheet Copros
A1: =PLANS!A1 -> Syndicat- des Copropriétaires
A2: =PLANS!A2 -> Rue
A3: =PLANS!A3 -> C.P. Ville
C6: SITUATION DES COPROPRIETAIRES
F8: Au | G8: =PLANS!H10 -> 31 decembre 2020
A10: CODES | B10: NOMS DES COPROPRIETAIRES | G10: SOLDES
G11: DEBITEURS | H11: CREDITEURS
A12: 450.01 | J12: Vous devez mettre les noms et les soldes des comptes
A13: 450.02 | J13: copropriétaires
A14: 450.03
A15: 450.04
A16: 450.05
A17: 450.06
A18: 450.07
A19: 450.08
B29: TOTAUX | G29: =SUM(G12:G28) -> 0 | H29: =SUM(H12:H28) -> 0
B30: SOLDE GENERAL | G30: =IF(G29>H29,G29-H29,"") ->  | H30: =IF(H29>G29,H29-G29,"") -> 
G31: =IF(Annexe1!D20=Copros!G29,"","ERREUR") -> ERREUR | H31: =IF(Annexe1!H20=Copros!H29,"","ERREUR") -> ERREUR
A32: Le syndic
